[Event "45th FIDE Womens Olympiad 2024"]
[Site "Budapest"]
[Date "2024.09.19"]
[Round "8.4"]
[White "Vantika Agrawal"]
[Black "Sliwicka, Alicja"]
[Result "1/2-1/2"]
[ECO "A14"]
[WhiteElo "2370"]
[BlackElo "2373"]
[Annotator "TA"]
[PlyCount "157"]
[EventDate "2024.09.05"]
[EventType "team-tourn"]
[EventCountry "HUN"]
[SourceTitle "playchess.com"]
[Source "ChessBase"]
[SourceQuality "1"]
[WhiteTeam "India"]
[BlackTeam "Poland"]
[WhiteTeamCountry "IND"]
[BlackTeamCountry "POL"]
[TimeControl "40/5400+30:1800+30"]

{[%evp 84,157,175,150,242,237,447,349,456,458,424,420,380,319,459,434,561,480,504,503,525,519,481,491,515,570,848,848,670,16,14,0,0,0,9,9,12,12,12,12,12,12,12,12,12,3,3,3,3,0,0,0,0,0,0,0,3,0,0,0,0,0,0,0,0,0,0,0,0,-8,0,-8,-8,-8,-8,-8]} 1. d4 {[%emt 0:00:30]} d5 {[%emt 0:00:05]} 2. c4 {[%emt 0:00:25]} e6 {[%emt 0:00:05]} 3. Nf3 {[%emt 0:00:05]} Nf6 {[%emt 0:00:05]} 4. g3 {[%emt 0:00:04]} Be7 {[%emt 0:00:16]} 5. Bg2 {[%emt 0:00:32]} O-O {[%emt 0:00:15]} 6. O-O {[%emt 0:00:43]} c6 {[%emt 0:00:07]} 7. Nc3 {[%emt 0:01:26]} a5 {[%emt 0:01:12]} 8. b3 {[%emt 0:03:08]} b6 {[%emt 0:01:32]} 9. Bb2 {[%emt 0:02:21]} Ba6 {[%emt 0:00:33] A14: English Opening: 1...e6 with b3 by White.} 10. Nd2 {[%emt 0:01:09]} b5 {[%emt 0:01:18]} 11. c5 {[%emt 0:03:07]} b4 {[%emt 0:00:21]} 12. Na4 {[%emt 0:00:18]} Nbd7 {[%emt 0:00:13]} 13. Re1 {[%emt 0:01:04]} Bb5 {[%emt 0:01:38]} 14. e4 {[%emt 0:03:43]} dxe4 {[%emt 0:02:17]} 15. Nxe4 {[%emt 0:00:18]} Nxe4 {[%emt 0:00:54]} 16. Bxe4 {[%emt 0:00:17]} Qc7 {[%emt 0:18:27]} 17. Qc2 {[%emt 0:01:26]} h6 {[%emt 0:04:30]} 18. Bh7+ $146 {[%emt 0:08:10]} ({Predecessor:} 18. Bf3 Rfd8 {½-½ Koch,C (2371)-Sorcinelli,A (2338) RM-2022-0-00252 2021}) 18... Kh8 {[%emt 0:00:14]} 19. Bd3 {[%emt 0:01:28]} Rad8 {[%emt 0:04:29]} 20. Rad1 {[%emt 0:05:45]} Bxa4 {[%emt 0:04:24]} 21. bxa4 {[%emt 0:01:50]} Nf6 {[%emt 0:00:24]} 22. Qe2 {[%emt 0:05:10]} Rd5 {[%emt 0:06:46]} 23. h4 {[%emt 0:04:00]} Rfd8 {[%emt 0:01:11]} 24. Bc4 {[%emt 0:01:40]} R5d7 {[%emt 0:01:27]} 25. Qf3 {[%emt 0:10:55]} Kg8 {[%emt 0:05:57]} 26. Bd3 {[%emt 0:10:50]} Nd5 {[%emt 0:02:20]} 27. Bc2 {[%emt 0:08:13]} Bf6 {[%emt 0:04:18]} 28. Re4 {[%emt 0:02:27]} g6 {[%emt 0:11:52]} 29. h5 {[%emt 0:05:45]} g5 {[%emt 0:00:23]} 30. Kg2 {[%emt 0:01:48]} Bg7 {[%emt 0:00:32]} 31. Bb3 {[%emt 0:02:19]} Re7 {[%emt 0:03:22]} 32. Ree1 {[%emt 0:02:42]} Qd7 {[%emt 0:01:34]} 33. Re4 {[%emt 0:03:57]} Qe8 {[%emt 0:01:26]} 34. Re2 {[%emt 0:01:06]} f5 {[%emt 0:04:32]} 35. Rde1 {[%emt 0:03:24]} g4 {[%emt 0:00:19]} 36. Qd3 {[%emt 0:00:18]} Qf7 {[%emt 0:08:19]} 37. Kg1 {[%emt 0:02:29]} Nc7 {[%emt 0:04:39]} 38. Re3 {[%emt 0:01:37]} Rde8 {[%emt 0:00:32]} 39. a3 {[%emt 0:02:46]} bxa3 {[%emt 0:02:41]} 40. Bxa3 {[%emt 0:00:35]} Rd8 {[%emt 0:02:12]} 41. Bb2 {[%emt 0:04:14]} Kh8 {[%emt 0:04:44]} 42. Bc3 {[%emt 0:04:38]} Rdd7 {[%emt 0:08:16]} 43. R3e2 {[%emt 0:13:17]} Qf6 {[%emt 0:06:28]} (43... Kh7 $16 44. Bxa5 Rxd4) 44. Bxa5 $18 {[%emt 0:02:26]} Rxd4 $2 {[%emt 0:01:35]} (44... Qxd4 45. Qc2 Qd3 46. Bxc7 (46. Bxe6 $2 Qxc2 47. Rxc2 Rxe6 $19) 46... Qxc2 47. Bxc2 Rxc7 48. Rxe6 Rf7) 45. Qc2 $18 {[%emt 0:00:35]} Rd8 {[%emt 0:11:23]} 46. Bxc7 {[%emt 0:00:24]} Rxc7 {[%emt 0:00:01]} 47. Rxe6 {[%emt 0:00:10]} (47. Bxe6 Rf8 48. Ba2 Qd8 $18) 47... Qf8 {[%emt 0:00:10]} 48. a5 {[%emt 0:03:01]} Rcd7 {[%emt 0:00:24]} (48... Ra7 $142 49. Rd6 (49. Rxc6 f4 $18) 49... Rda8) 49. R1e2 $18 {[%emt 0:03:32]} (49. Rxc6 f4 50. gxf4 g3 51. fxg3 Rd3 $18) 49... Rd3 {[%emt 0:01:22]} 50. Rd6 {[%emt 0:02:47]} R3xd6 {[%emt 0:01:53]} 51. cxd6 {[%emt 0:00:06]} f4 {[%emt 0:01:18]} 52. Qg6 {[%emt 0:00:56]} Rxd6 {[%emt 0:00:11]} 53. Qxg4 {[%emt 0:00:28]} (53. Re6 fxg3 54. Qe8 (54. Rxd6 $2 Qxf2+ 55. Kh1 Qh2#) (54. fxg3 Bd4+) 54... gxf2+ 55. Kf1 Rd3 $17) 53... fxg3 {[%emt 0:00:11]} 54. fxg3 {[%emt 0:00:31]} Rf6 {[%emt 0:00:22]} 55. Kg2 {[%emt 0:00:27]} Qa8 {[%emt 0:00:54]} 56. Qe4 $2 {[%emt 0:00:35]} (56. Bc4 $18 {Threatening mate with Re7.} c5+ 57. Kh2) 56... Qxa5 $11 {[%emt 0:00:19]} 57. Qe8+ {[%emt 0:00:29]} Rf8 {[%emt 0:00:06]} 58. Qg6 {[%emt 0:00:30]} Qf5 {[%emt 0:00:24]} 59. Qxf5 {[%emt 0:00:28]} (59. Qxc6 {gets mated.} Qf1+ (59... Qxh5 60. Re6 $11) 60. Kh2 Qxe2+ 61. Kh3 Qf1+ (61... Qxh5+ {is a self mate.} 62. Kg2 Qe2+ 63. Kh3 Qf1+ 64. Qg2 Qf5+ 65. g4 Qd3+ 66. Kh4 Bf6+ 67. Kh5 Qxb3 68. g5 Bxg5 69. Qh1 Kg8 70. Qc6 Qh3+ 71. Kg6 Qf5+ 72. Kh5 Bf6+ 73. Kxh6 Qh7#) 62. Qg2 Qf5+ 63. Kh2 Qxh5+ 64. Qh3 Qe2+ (64... Rf2+ 65. Kg1 Qf3 66. Qc8+ Bf8 67. Qc3+ Qxc3 68. Kxf2 Bc5+ 69. Ke2 Qe3+ 70. Kd1 Qd3+ 71. Ke1 Be3 72. Be6 Qd2+ 73. Kf1 Qf2#) 65. Qg2 Rf2 (65... Qh5+ 66. Qh3 Rf2+ 67. Kg1 Qf3 68. Qc8+ Bf8 69. Qc3+ Qxc3 70. Kxf2 Bc5+ 71. Ke2 Qe3+ 72. Kd1 Qd3+ 73. Ke1 Be3 74. Be6 Qd2+ 75. Kf1 Qf2#) (65... Qh5+ 66. Qh3 Rf2+ 67. Kg1 Qf3 68. Qc8+ Bf8 69. Qc3+ Qxc3 70. Kxf2 Bc5+ 71. Ke2 Qe3+ 72. Kd1 Qd3+ 73. Ke1 Be3 74. Be6 Qd2+ 75. Kf1 Qf2#)) 59... Rxf5 {[%emt 0:00:01]} 60. g4 {[%emt 0:00:26]} Rf8 {[%emt 0:00:10]} 61. Re6 {[%emt 0:00:30]} Rf6 {[%emt 0:00:13]} 62. Re8+ {[%emt 0:00:33]} Rf8 {[%emt 0:00:23]} 63. Re7 {[%emt 0:00:12]} c5 {[%emt 0:01:17]} 64. Rc7 {[%emt 0:00:17]} Bd4 {[%emt 0:00:36]} 65. Rc6 {[%emt 0:00:30]} Kg7 {[%emt 0:00:58]} 66. Bd5 {[%emt 0:00:22]} Rf6 {[%emt 0:00:32]} 67. Rc7+ {[%emt 0:00:24]} Kf8 {[%emt 0:00:28]} 68. Rb7 {[%emt 0:00:42]} Ke8 {[%emt 0:00:34]} 69. Be4 {[%emt 0:00:30]} Ra6 {[%emt 0:01:09]} 70. Bg6+ {[%emt 0:00:28]} Kd8 {[%emt 0:00:05]} 71. Kf3 {[%emt 0:00:15]} Bf6 {[%emt 0:00:37]} 72. Ke4 {[%emt 0:00:23]} Rd6 {[%emt 0:00:32]} 73. Rh7 {[%emt 0:00:49]} Bg5 {[%emt 0:00:09]} 74. Bf5 {[%emt 0:00:28]} Rd4+ {[%emt 0:00:57]} 75. Ke5 {[%emt 0:00:24]} Bf4+ {[%emt 0:00:07]} 76. Ke6 {[%emt 0:00:45]} Rd6+ {[%emt 0:00:22]} 77. Kf7 {[%emt 0:00:05]} Kc7 {[%emt 0:00:32]} 78. Rh8 {[%emt 0:01:01]} Kb6 {[%emt 0:00:19]} 79. Rb8+ {[%emt 0:00:40]} 1/2-1/2

[Event "45th FIDE Womens Olympiad 2024"]
[Site "Budapest"]
[Date "2024.09.19"]
[Round "8.4"]
[White "Pride, Chika"]
[Black "Aayat Asmi"]
[Result "1-0"]
[ECO "C01"]
[WhiteElo "1587"]
[BlackElo "1421"]
[PlyCount "68"]
[EventDate "2024.09.05"]
[EventType "team-tourn"]
[EventCountry "HUN"]
[WhiteTeam "Bahamas"]
[BlackTeam "Pakistan"]
[WhiteTeamCountry "BAH"]
[BlackTeamCountry "PAK"]
[TimeControl "40/5400+30:1800+30"]

1. e4 e6 2. d4 d5 3. exd5 exd5 4. Nc3 Nf6 5. Nf3 Bd6 6. Bd3 O-O 7. O-O Re8 8. Bg5 c6 9. Ne2 Bg4 10. Ng3 h6 11. Bxf6 Qxf6 12. Be2 Nd7 13. h3 Bxf3 14. Bxf3 Re7 15. Qd3 Rae8 16. Nf5 Re6 17. Bg4 Qd8 18. Ne3 R6e7 19. Rae1 Nf6 20. f4 Nxg4 21. hxg4 Qb6 22. a3 Qxb2 23. Rb1 Qxa3 24. Rb3 Qa5 25. Rf3 Qe1+ 26. Nf1 Qh4 27. Nh2 Re1+ 28. Rf1 Rxf1+ 29. Nxf1 b6 30. Qf5 g6 31. Qd7 Qe7 32. Qxc6 Bxf4 33. Qxd5 Qe1 34. Rf3 Bd6 1-0

[Event "45th FIDE Womens Olympiad 2024"]
[Site "Budapest"]
[Date "2024.09.19"]
[Round "8.5"]
[White "Gaal, Zsoka"]
[Black "Osmak, Yuliia"]
[Result "1/2-1/2"]
[ECO "D27"]
[WhiteElo "2385"]
[BlackElo "2471"]
[Annotator "TA"]
[PlyCount "120"]
[EventDate "2024.09.05"]
[EventType "team-tourn"]
[EventCountry "HUN"]
[SourceTitle "playchess.com"]
[Source "ChessBase"]
[SourceQuality "1"]
[WhiteTeam "Hungary"]
[BlackTeam "Ukraine"]
[WhiteTeamCountry "HUN"]
[BlackTeamCountry "UKR"]
[TimeControl "40/5400+30:1800+30"]

{[%evp 28,120,0,0,2,0,0,0,0,-8,0,-7,-6,-7,45,-8,-8,-11,-7,-17,0,0,0,-7,-4,-4,0,0,0,0,0,-8,-1,-36,-39,-37,-51,-49,-20,-16,-16,-39,0,0,0,0,21,18,21,21,21,21,21,11,18,0,10,0,0,0,0,0,0,0,0,0,0,0,10,0,0,0,0,0,0,0,-6,-6,0,-15,-11,-10,-12,-166,0,0,0,0,0,0,0,0,0,0,0]} 1. d4 {[%emt 0:00:06]} d5 {[%emt 0:00:03]} 2. c4 {[%emt 0:00:10]} dxc4 {[%emt 0:00:03]} 3. Nf3 {[%emt 0:00:08]} Nf6 {[%emt 0:00:05]} 4. e3 {[%emt 0:00:11]} e6 {[%emt 0:00:05]} 5. Bxc4 {[%emt 0:00:11]} a6 {[%emt 0:00:03]} 6. O-O {[%emt 0:00:32]} c5 {[%emt 0:00:04]} 7. Be2 {[%emt 0:00:17] D27: Queen's Gambit Accepted: Classical main line: 7 e4!? and 7 a4.} Nbd7 {[%emt 0:00:30]} 8. b3 {[%emt 0:09:04]} Be7 {[%emt 0:00:34]} 9. Bb2 {[%emt 0:00:28]} O-O {[%emt 0:00:40]} 10. Nbd2 {[%emt 0:04:29]} b6 {[%emt 0:03:23]} 11. Rc1 {[%emt 0:04:35]} Bb7 {[%emt 0:00:46]} 12. Qc2 {[%emt 0:00:27]} Rc8 {[%emt 0:02:54]} 13. Qb1 {[%emt 0:00:19]} cxd4 {[%emt 0:08:29]} 14. Nxd4 {[%emt 0:04:11]} Bb4 {[%emt 0:02:39]} 15. Rfd1 {[%emt 0:13:50]} Rxc1 $146 {[%emt 0:09:07]} ({Predecessor:} 15... Qe7 16. Bf3 Ne5 17. Bxb7 Qxb7 18. N2f3 Nxf3+ 19. Nxf3 h6 20. Bxf6 gxf6 21. Qb2 Be7 {0-1 Miszler,L (2194)-Estrada Nieto,J (2253) Titled Tuesday intern op 08th Feb Late blitz 2022 (7)}) 16. Qxc1 {[%emt 0:00:28]} Qa8 {[%emt 0:00:06]} 17. Bf3 {[%emt 0:03:17]} Rc8 {[%emt 0:00:46]} 18. Qb1 {[%emt 0:02:00]} Nd5 {[%emt 0:07:56]} 19. a3 {[%emt 0:08:03]} Bf8 {[%emt 0:23:51]} 20. Nc4 {[%emt 0:02:56]} h6 {[%emt 0:05:06]} (20... N5f6 $11) 21. h3 {[%emt 0:01:34]} ({Better is} 21. e4 $14 N5f6 22. Nxe6 fxe6 23. Bxf6 Nxf6 24. Nxb6) 21... N5f6 $11 {[%emt 0:05:00]} 22. Rc1 {[%emt 0:09:08]} Bd5 {[%emt 0:03:31]} 23. Qa1 {[%emt 0:10:01]} Qb7 {[%emt 0:05:06]} 24. Bxd5 {[%emt 0:00:45]} Qxd5 {[%emt 0:01:19]} 25. Nd2 {[%emt 0:02:53]} Rxc1+ {[%emt 0:00:51]} 26. Qxc1 {[%emt 0:00:07]} Nc5 {[%emt 0:00:34]} 27. Qc2 {[%emt 0:05:49]} b5 {[%emt 0:00:39]} 28. b4 {[%emt 0:00:47]} Nce4 {[%emt 0:04:39]} 29. N2f3 {[%emt 0:03:47]} Nd6 {[%emt 0:06:22]} 30. a4 {[%emt 0:03:57]} Nc4 {[%emt 0:03:24]} 31. axb5 {[%emt 0:02:54]} axb5 {[%emt 0:00:03]} (31... Bxb4 $2 32. bxa6 Nd7 33. Qb3 $18 (33. a7 Ndb6 $18)) 32. Bc3 {[%emt 0:00:51]} e5 {[%emt 0:01:23]} 33. Ne2 {[%emt 0:01:05]} Bd6 {[%emt 0:01:15]} 34. Be1 {[%emt 0:01:14]} e4 {[%emt 0:03:58]} 35. Nfd4 {[%emt 0:01:47]} Qe5 {[%emt 0:00:27]} 36. Ng3 {[%emt 0:00:31]} h5 {[%emt 0:00:36]} 37. Qa2 {[%emt 0:02:05]} Qd5 {[%emt 0:00:12]} 38. Ngf5 {[%emt 0:00:51]} g6 {[%emt 0:02:01]} 39. Nxd6 {[%emt 0:00:19]} Nxd6 {[%emt 0:00:04]} 40. Qa6 {[%emt 0:00:18]} Nfe8 {[%emt 0:00:37]} 41. Bc3 {[%emt 0:06:39]} Qc4 {[%emt 0:01:31]} 42. Qa1 {[%emt 0:04:40]} Nc7 {[%emt 0:02:15]} 43. Nc2 {[%emt 0:02:59]} Nde8 {[%emt 0:13:43]} 44. Na3 {[%emt 0:06:21]} Qd3 {[%emt 0:03:13]} 45. Be5 {[%emt 0:01:37]} Qd2 {[%emt 0:04:54]} 46. Qb1 {[%emt 0:00:54]} Qd5 {[%emt 0:00:17]} 47. Qb2 {[%emt 0:00:45]} Kh7 {[%emt 0:01:46]} 48. Qc3 {[%emt 0:01:16]} Ne6 {[%emt 0:01:17]} 49. Kh1 {[%emt 0:03:18]} h4 {[%emt 0:00:40]} 50. Nc2 {[%emt 0:02:55]} g5 {[%emt 0:01:01]} 51. Bd4 {[%emt 0:03:31]} Nd6 {[%emt 0:00:52]} 52. Qa1 {[%emt 0:00:07]} Qb3 {[%emt 0:00:44]} 53. Qd1 {[%emt 0:01:08]} Kg6 {[%emt 0:00:44]} 54. Ba1 {[%emt 0:00:50]} (54. Qc1 {simplifies} f6 55. Kg1 Nc4 56. Ba1) 54... Nc4 {[%emt 0:00:38]} 55. f4 $2 {[%emt 0:01:38] [#]} (55. Qc1 $1 $11 {and White stays safe.}) 55... exf3 $2 {[%emt 0:00:55]} (55... gxf4 $2 {loses.} 56. Qg4+ Ng5 57. exf4 $18) (55... Nxe3 56. Nxe3 Qxe3 57. f5+ Kxf5 58. Qf1+ Qf4 59. Qxb5+ Kg6 60. Be5 $11) (55... Qd3 $1 $19 {[%cal Rd3d1]} 56. f5+ Kh6 (56... Kxf5 57. Qh5 $11)) 56. Qxf3 $11 {[%emt 0:00:22]} Qxc2 {[%emt 0:03:00]} 57. Qf6+ {[%emt 0:00:10]} Kh5 {[%emt 0:00:21]} 58. Qh8+ {[%emt 0:00:40]} Kg6 {[%emt 0:00:02]} 59. Qf6+ {[%emt 0:00:18]} Kh5 {[%emt 0:00:18]} 60. Qh8+ {[%emt 0:00:49]} Kg6 {[%emt 0:00:03]} 1/2-1/2

[Event "45th FIDE Womens Olympiad 2024"]
[Site "Budapest"]
[Date "2024.09.19"]
[Round "8.6"]
[White "Ushenina, Anna"]
[Black "Hoang, Thanh Trang"]
[Result "1-0"]
[ECO "D31"]
[WhiteElo "2417"]
[BlackElo "2351"]
[Annotator "TA"]
[PlyCount "161"]
[EventDate "2024.09.05"]
[EventType "team-tourn"]
[EventCountry "HUN"]
[SourceTitle "playchess.com"]
[Source "ChessBase"]
[SourceQuality "1"]
[WhiteTeam "Ukraine"]
[BlackTeam "Hungary"]
[WhiteTeamCountry "UKR"]
[BlackTeamCountry "HUN"]
[TimeControl "40/5400+30:1800+30"]

{[%evp 68,161,135,131,133,137,177,76,76,78,77,35,108,101,104,97,105,93,149,141,143,129,164,154,214,148,164,116,127,144,150,139,255,255,257,257,1613,1808,1939,1610,1939,1939,5431,615,11926,11926,29944,12687,10182,5531,4274,3106,3499,3509,2679,2081,1648,1389,1241,1162,890,878,29976,29977,29978,29979,29979,29980,29980,29981,29981,29982,29982,29983,29983,29984,29984,29985,29985,29983,29987,29988,29988,29989,29992,29991,29989,29988,29989,29990,29990,29991,29991,29992,29994,29993]} 1. d4 {[%emt 0:00:03]} d5 {[%emt 0:00:22]} 2. c4 {[%emt 0:00:12]} e6 {[%emt 0:00:20]} 3. Nc3 {[%emt 0:00:25]} a6 {[%emt 0:00:30]} 4. cxd5 {[%emt 0:01:05]} exd5 {[%emt 0:00:12]} 5. Bf4 {[%emt 0:00:18]} Nf6 {[%emt 0:01:03]} 6. e3 {[%emt 0:00:15]} Bd6 {[%emt 0:00:36]} 7. Bg5 {[%emt 0:00:08]} c6 {[%emt 0:01:00]} 8. Bd3 {[%emt 0:00:11]} O-O {[%emt 0:03:08]} 9. Nge2 {[%emt 0:00:50]} Re8 {[%emt 0:02:19]} 10. Qc2 {[%emt 0:00:40]} h6 {[%emt 0:00:42]} 11. Bh4 {[%emt 0:00:05]} Be6 {[%emt 0:02:28]} 12. h3 {[%emt 0:03:17]} Nbd7 {[%emt 0:10:12]} 13. O-O {[%emt 0:04:34]} Rc8 {[%emt 0:12:56]} 14. Rad1 {[%emt 0:05:20]} Nf8 {[%emt 0:10:00]} 15. a3 {[%emt 0:25:24]} Be7 {[%emt 0:02:44]} 16. f3 {[%emt 0:13:22]} c5 {[%emt 0:03:51]} 17. Bf2 {[%emt 0:02:44]} b5 {[%emt 0:12:29]} 18. Qd2 {[%emt 0:05:52]} Qb6 {[%emt 0:03:21]} 19. dxc5 {[%emt 0:03:03]} Bxc5 {[%emt 0:00:48]} 20. b4 {[%emt 0:05:06]} Bd6 {[%emt 0:00:46]} 21. Bb1 {[%emt 0:06:02]} Qb8 {[%emt 0:02:18]} 22. f4 {[%emt 0:07:32]} Rcd8 {[%emt 0:03:26]} 23. Nd4 {[%emt 0:00:27]} Qb7 {[%emt 0:02:04]} 24. Qd3 {[%emt 0:08:49]} Ne4 {[%emt 0:03:36]} 25. Nxe6 {[%emt 0:01:31]} Rxe6 {[%emt 0:07:03]} 26. Qxd5 {[%emt 0:00:13]} Qxd5 {[%emt 0:00:32]} 27. Nxd5 {[%emt 0:00:02]} Nxf2 {[%emt 0:00:19]} 28. Kxf2 {[%emt 0:04:32]} Ree8 {[%emt 0:00:54]} 29. Kf3 {[%emt 0:00:54]} Ne6 {[%emt 0:01:09]} 30. Rd2 {[%emt 0:01:47]} Nc7 {[%emt 0:01:10]} 31. Rfd1 {[%emt 0:00:32]} Nxd5 {[%emt 0:00:51]} 32. Rxd5 {[%emt 0:00:02]} Be7 {[%emt 0:01:27]} 33. Rd7 {[%emt 0:00:39]} Kf8 {[%emt 0:01:18]} 34. Be4 {[%emt 0:00:07]} Bf6 {[%emt 0:02:44]} 35. Bb7 {[%emt 0:01:11]} Rxd7 {[%emt 0:01:40]} 36. Rxd7 {[%emt 0:00:01]} Re6 {[%emt 0:01:58] [#]} 37. Bd5 {[%emt 0:01:08]} (37. f5 $1 $18 {[%cal Rf5e6] is more deadly.} Rb6 38. Bd5) 37... Re7 $16 {[%emt 0:00:30]} 38. Rd6 {[%emt 0:00:33]} Ra7 {[%emt 0:00:17]} 39. Bc6 {[%emt 0:00:32]} a5 {[%emt 0:02:47]} (39... Ke7 $14 40. Rd2 Rc7) 40. Bxb5 {[%emt 0:00:22]} axb4 {[%emt 0:00:20]} 41. axb4 {[%emt 0:00:58]} Rb7 {[%emt 0:01:59]} 42. Rd5 {[%emt 0:00:55]} Ke7 {[%emt 0:02:50]} ({Better is} 42... Be7) 43. Rc5 {[%emt 0:08:29]} Bb2 {[%emt 0:03:40]} 44. e4 {[%emt 0:07:31]} Ba3 {[%emt 0:06:24]} 45. Re5+ {[%emt 0:08:38]} Kf6 {[%emt 0:04:52]} (45... Kd6 $16 46. Rd5+ Kc7) 46. Rf5+ {[%emt 0:00:25]} Ke7 {[%emt 0:03:30]} 47. Bc4 {[%emt 0:00:30]} (47. Bc6 $18 Rxb4 48. Ra5) 47... f6 $16 {[%emt 0:00:13]} 48. b5 {[%emt 0:00:47]} Rc7 {[%emt 0:00:12]} 49. Bd3 {[%emt 0:03:24]} Rc5 {[%emt 0:00:26]} (49... Rd7 $16) 50. Rxc5 $18 {[%emt 0:02:13]} Bxc5 {[%emt 0:00:07]} 51. e5 {[%emt 0:01:35]} fxe5 $2 {[%emt 0:02:19]} (51... Bb4 52. b6 Bc5) 52. fxe5 $18 {[%emt 0:00:00]} Bb6 {[%emt 0:00:52]} 53. Ke4 {[%emt 0:00:08]} Bc7 {[%emt 0:02:02]} 54. Kd5 {[%emt 0:00:12]} g5 {[%emt 0:00:22]} 55. Bf5 {[%emt 0:00:36]} (55. Be2 $142 Bb6 56. Ke4) 55... h5 {[%emt 0:00:21]} 56. Bg6 {[%emt 0:00:09]} h4 {[%emt 0:00:24]} 57. Bf5 {[%emt 0:00:57]} Bb6 {[%emt 0:01:48]} 58. Bg4 {[%emt 0:00:24]} Bc7 {[%emt 0:00:25]} 59. Ke4 {[%emt 0:00:35]} Bb6 {[%emt 0:00:33]} 60. Kf5 {[%emt 0:00:06]} Be3 {[%emt 0:00:17]} 61. Bh5 {[%emt 0:00:10]} Bf2 {[%emt 0:00:45]} 62. Be2 {[%emt 0:00:20]} (62. Kxg5 Ke6 63. Kf4 Bg3+ 64. Kg5 Bf2 $16) 62... Be3 {[%emt 0:01:05]} 63. Bc4 {[%emt 0:00:07]} Bd4 {[%emt 0:00:23]} 64. Kxg5 {[%emt 0:00:31]} Bxe5 {[%emt 0:00:08]} 65. Kxh4 {[%emt 0:00:01]} Bd4 {[%emt 0:00:14]} 66. Kg5 {[%emt 0:00:06]} Kf8 {[%emt 0:00:11]} 67. Kg6 {[%emt 0:00:31]} Bf2 {[%emt 0:00:23]} 68. g4 {[%emt 0:00:29]} Ke7 {[%emt 0:00:33]} 69. Kf5 {[%emt 0:00:15]} Kf8 {[%emt 0:00:17]} 70. g5 {[%emt 0:00:25]} Kg7 {[%emt 0:00:08]} 71. Kg4 {[%emt 0:00:36]} Bd4 {[%emt 0:00:15]} 72. h4 {[%emt 0:00:02]} Be3 {[%emt 0:00:14]} 73. Kf5 {[%emt 0:00:09]} Bf2 {[%emt 0:00:15]} 74. h5 {[%emt 0:00:05]} Be3 {[%emt 0:00:07]} 75. h6+ {[%emt 0:02:22]} Kh8 {[%emt 0:00:08]} 76. Kg4 {[%emt 0:00:28]} Kh7 {[%emt 0:00:27]} 77. Bd3+ {[%emt 0:00:12]} Kh8 {[%emt 0:00:08]} 78. Kh5 {[%emt 0:00:04]} Kg8 {[%emt 0:00:25]} 79. g6 {[%emt 0:00:06]} Bd4 {[%emt 0:00:15]} 80. Bc4+ {[%emt 0:00:22]} Kh8 {[%emt 0:00:07]} 81. g7+ {[%emt 0:00:12]} 1-0

[Event "45th FIDE Womens Olympiad 2024"]
[Site "Budapest"]
[Date "2024.09.19"]
[Round "8.6"]
[White "Wahid, Chelsea"]
[Black "Cadeau, Merisena"]
[Result "0-1"]
[ECO "D06"]
[WhiteElo "1482"]
[BlackElo "1671"]
[PlyCount "110"]
[EventDate "2024.09.05"]
[EventType "team-tourn"]
[EventCountry "HUN"]
[WhiteTeam "Saint Lucia"]
[BlackTeam "Haiti"]
[BlackTeamCountry "HAI"]
[TimeControl "40/5400+30:1800+30"]

1. d4 d5 2. c4 Nf6 3. cxd5 Qxd5 4. Nc3 Qd8 5. Nf3 Bf5 6. Bf4 c6 7. e3 e6 8. Bd3 Bg4 9. O-O Be7 10. h3 Bh5 11. Ne4 Nd5 12. Bh2 O-O 13. Ng3 Bg6 14. Re1 Bb4 15. Re2 Nd7 16. Bxg6 hxg6 17. Nf1 N7f6 18. e4 Nb6 19. Rc1 Re8 20. N1d2 Rc8 21. Nc4 Nxc4 22. Rxc4 Ba5 23. Qc2 Bc7 24. Bxc7 Qxc7 25. Ne5 Nd7 26. Nxd7 Qxd7 27. Qc3 Qc7 28. e5 f6 29. Qg3 Kf7 30. Re4 Rh8 31. Rg4 Rh6 32. exf6 gxf6 33. Qe3 Rh7 34. Re4 Qd6 35. Qb3 Rc7 36. Rc2 Rh5 37. Rce2 Re7 38. Qa4 a6 39. Qb3 Rb5 40. Qc2 Qd5 41. b3 Qd6 42. Rh4 Kg7 43. Qd2 g5 44. Rhe4 Rd5 45. Qe3 Kf7 46. h4 f5 47. Re5 gxh4 48. Rxd5 exd5 49. Qd3 Rxe2 50. Qxe2 Qg6 51. Qf3 Qg4 52. Qxg4 fxg4 53. Kf1 Kf6 54. Ke2 Kf5 55. f3 Kf4 {0-} 0-1

[Event "45th FIDE Womens Olympiad 2024"]
[Site "Budapest"]
[Date "2024.09.19"]
[Round "8.7"]
[White "Papp, Petra"]
[Black "Buksa, Nataliya"]
[Result "1/2-1/2"]
[ECO "D02"]
[WhiteElo "2259"]
[BlackElo "2387"]
[Annotator "TA"]
[PlyCount "51"]
[EventDate "2024.09.05"]
[EventType "team-tourn"]
[EventCountry "HUN"]
[SourceTitle "playchess.com"]
[Source "ChessBase"]
[SourceQuality "1"]
[WhiteTeam "Hungary"]
[BlackTeam "Ukraine"]
[WhiteTeamCountry "HUN"]
[BlackTeamCountry "UKR"]
[TimeControl "40/5400+30:1800+30"]

{[%evp 9,51,-4,14,10,10,12,8,4,10,10,8,15,14,-7,0,-16,0,0,2,0,0,0,5,0,0,0,0,0,0,0,0,0,0,0,0,-7,0,0,0,-13,0,0,0,-19]} 1. d4 {[%emt 0:00:06]} d5 {[%emt 0:00:31]} 2. Nf3 {[%emt 0:00:43]} Nf6 {[%emt 0:00:04]} 3. Bf4 {[%emt 0:00:21]} c5 {[%emt 0:00:17]} 4. e3 {[%emt 0:00:28]} Nc6 {[%emt 0:00:03]} 5. Nbd2 {[%emt 0:00:41]} cxd4 {[%emt 0:01:10] The position is equal.} 6. exd4 {[%emt 0:00:44]} Qb6 {[%emt 0:00:04]} 7. Nb3 {[%emt 0:07:35]} Bf5 {[%emt 0:00:29]} 8. c3 {[%emt 0:09:06]} e6 {[%emt 0:02:50]} 9. a4 {[%emt 0:08:29] And now a5 would win.} a6 {[%emt 0:00:39]} 10. a5 {[%emt 0:01:18]} Qd8 {[%emt 0:00:14]} 11. Bd3 {[%emt 0:08:02]} Bxd3 {[%emt 0:01:50]} 12. Qxd3 {[%emt 0:00:07]} Be7 {[%emt 0:00:13]} 13. O-O {[%emt 0:02:14]} O-O {[%emt 0:00:04]} 14. h3 {[%emt 0:03:27]} Nd7 {[%emt 0:13:58]} 15. Ra2 {[%emt 0:09:08]} b6 {[%emt 0:06:02]} 16. axb6 {[%emt 0:08:18]} Qxb6 {[%emt 0:00:04]} 17. Nbd2 {[%emt 0:00:52]} a5 {[%emt 0:04:53]} 18. Rfa1 {[%emt 0:00:15][%cal Ob2b4]} Ra7 {[%emt 0:01:58]} 19. h4 {[%emt 0:01:41]} h6 {[%emt 0:04:29]} 20. Qe2 {[%emt 0:01:13]} Rb7 {[%emt 0:05:22]} 21. Nf1 {[%emt 0:01:04]} Qb5 {[%emt 0:02:17]} 22. Qd2 {[%emt 0:00:50]} Kh7 {[%emt 0:03:26]} 23. Qc2+ {[%emt 0:01:02]} Kg8 {[%emt 0:00:04]} 24. Qd2 {[%emt 0:00:03]} Kh7 {[%emt 0:02:32]} 25. Qc2+ {[%emt 0:00:05]} Kg8 {[%emt 0:00:27]} 26. Qd2 {[%emt 0:05:01] Not much happened in this game.   Weighted Error Value: White=0.02 (flawless) /Black=0.03 (flawless) .  OK:         	White=7     	Black=12} 1/2-1/2